[Event "Titled Tuesday Blitz October 11 Early 2022"]
[White "Matinian, Nikita"]
[Black "Saucey, Michel"]
[WhiteFideId "24129100"]
[BlackFideId "601845"]
[WhiteElo "2422"]
[BlackElo "2253"]
[Result "1-0"]
[Round "03"]
[TimeControl "180+1"]
[Date "2022.10.12"]
[WhiteClock "0:00:41"]
[BlackClock "0:00:06"]

1. e4 {[%clk 0:02:54]}  c5 {[%clk 0:02:59]} 2. Nc3 {[%clk 0:02:54]}  Nc6 {[%clk 0:02:58]} 3. Bb5 {[%clk 0:02:52]}  Nd4 {[%clk 0:02:58]} 4. Nf3 {[%clk 0:02:53]}  a6 {[%clk 0:02:55]} 5. Bd3 {[%clk 0:02:53]}  Nc6 {[%clk 0:02:54]} 6. O-O {[%clk 0:02:52]}  e6 {[%clk 0:02:51]} 7. Re1 {[%clk 0:02:49]}  b5 {[%clk 0:02:47]} 8. a4 {[%clk 0:02:48]}  b4 {[%clk 0:02:47]} 9. Nd5 {[%clk 0:02:48]}  Bb7 {[%clk 0:02:40]} 10. b3 {[%clk 0:02:48]}  d6 {[%clk 0:02:36]} 11. Bb2 {[%clk 0:02:47]}  Nge7 {[%clk 0:02:10]} 12. Ng5 {[%clk 0:02:37]}  Ng6 {[%clk 0:02:04]} 13. Qh5 {[%clk 0:02:32]}  Nce5 {[%clk 0:01:55]} 14. Bxe5 {[%clk 0:02:13]}  dxe5 {[%clk 0:01:54]} 15. Ne3 {[%clk 0:02:09]}  Be7 {[%clk 0:01:49]} 16. Nh3 {[%clk 0:02:08]}  O-O {[%clk 0:01:40]} 17. Nc4 {[%clk 0:02:07]}  Qc7 {[%clk 0:01:27]} 18. Re3 {[%clk 0:02:04]}  Nf4 {[%clk 0:01:23]} 19. Nxf4 {[%clk 0:02:03]}  exf4 {[%clk 0:01:22]} 20. Rh3 {[%clk 0:02:01]}  h6 {[%clk 0:01:22]} 21. Qg4 {[%clk 0:01:54]}  e5 {[%clk 0:01:09]} 22. Rh5 {[%clk 0:01:25]}  Bc8 {[%clk 0:01:04]} 23. Qf3 {[%clk 0:01:23]}  Bg5 {[%clk 0:00:57]} 24. h4 {[%clk 0:01:22]}  Bf6 {[%clk 0:00:48]} 25. Re1 {[%clk 0:01:22]}  Be6 {[%clk 0:00:44]} 26. Rf5 {[%clk 0:01:21]}  Bxf5 {[%clk 0:00:41]} 27. exf5 {[%clk 0:01:22]}  Rae8 {[%clk 0:00:37]} 28. h5 {[%clk 0:01:20]}  e4 {[%clk 0:00:33]} 29. Bxe4 {[%clk 0:01:18]}  Re7 {[%clk 0:00:30]} 30. d3 {[%clk 0:01:17]}  Rfe8 {[%clk 0:00:29]} 31. a5 {[%clk 0:01:18]}  Bc3 {[%clk 0:00:26]} 32. Re2 {[%clk 0:01:16]}  Bd4 {[%clk 0:00:17]} 33. Nb6 {[%clk 0:01:10]}  Qd6 {[%clk 0:00:12]} 34. Kf1 {[%clk 0:00:46]}  Qf6 {[%clk 0:00:12]} 35. Qg4 {[%clk 0:00:42]}  Bb2 {[%clk 0:00:09]} 36. Nd5 {[%clk 0:00:41]}  Qd4 {[%clk 0:00:06]} 37. f6 {[%clk 0:00:41]} 1-0


[Site "https://www.chess.com"]

[Event "Titled Tuesday Blitz October 11 Early 2022"]
[White "Matveeva, Olga"]
[Black "Ambartsumova, Karina"]
[WhiteFideId "24107018"]
[BlackFideId "4166299"]
[WhiteElo "2055"]
[BlackElo "2299"]
[Result "1-0"]
[Round "03"]
[TimeControl "180+1"]
[Date "2022.10.12"]
[WhiteClock "0:00:27"]
[BlackClock "0:00:01"]

1. d4 {[%clk 0:03:00]}  Nf6 {[%clk 0:02:59]} 2. c4 {[%clk 0:03:00]}  e5 {[%clk 0:02:57]} 3. dxe5 {[%clk 0:02:59]}  Ne4 {[%clk 0:02:57]} 4. Nf3 {[%clk 0:02:57]}  b6 {[%clk 0:02:57]} 5. e3 {[%clk 0:02:56]}  Bb7 {[%clk 0:02:57]} 6. Be2 {[%clk 0:02:52]}  Bb4+ {[%clk 0:02:53]} 7. Nbd2 {[%clk 0:02:51]}  O-O {[%clk 0:02:52]} 8. O-O {[%clk 0:02:51]}  Re8 {[%clk 0:02:51]} 9. a3 {[%clk 0:02:47]}  Bf8 {[%clk 0:02:50]} 10. b4 {[%clk 0:02:44]}  Nc3 {[%clk 0:02:32]} 11. Qe1 {[%clk 0:02:44]}  Nxe2+ {[%clk 0:02:30]} 12. Qxe2 {[%clk 0:02:45]}  a5 {[%clk 0:02:27]} 13. b5 {[%clk 0:02:38]}  a4 {[%clk 0:02:27]} 14. Bb2 {[%clk 0:02:38]}  d6 {[%clk 0:02:15]} 15. Rad1 {[%clk 0:02:32]}  Nd7 {[%clk 0:02:10]} 16. exd6 {[%clk 0:02:28]}  Bxd6 {[%clk 0:02:11]} 17. e4 {[%clk 0:02:14]}  Qe7 {[%clk 0:02:10]} 18. Rfe1 {[%clk 0:02:10]}  Bxa3 {[%clk 0:02:02]} 19. Ba1 {[%clk 0:02:05]}  Bc5 {[%clk 0:01:50]} 20. Nd4 {[%clk 0:02:04]}  Bxd4 {[%clk 0:01:14]} 21. Bxd4 {[%clk 0:02:05]}  Nc5 {[%clk 0:01:14]} 22. Qg4 {[%clk 0:02:02]}  Ne6 {[%clk 0:01:11]} 23. Ba1 {[%clk 0:02:00]}  Qg5 {[%clk 0:01:07]} 24. Qg3 {[%clk 0:01:42]}  Red8 {[%clk 0:00:56]} 25. Nf3 {[%clk 0:01:33]}  Qxg3 {[%clk 0:00:53]} 26. Rxd8+ {[%clk 0:01:26]}  Rxd8 {[%clk 0:00:52]} 27. hxg3 {[%clk 0:01:26]}  Nc5 {[%clk 0:00:50]} 28. e5 {[%clk 0:01:21]}  Nb3 {[%clk 0:00:42]} 29. Bc3 {[%clk 0:01:16]}  Rd3 {[%clk 0:00:38]} 30. Bb4 {[%clk 0:01:15]}  Bxf3 {[%clk 0:00:35]} 31. gxf3 {[%clk 0:01:14]}  Rd4 {[%clk 0:00:29]} 32. e6 {[%clk 0:01:04]}  fxe6 {[%clk 0:00:26]} 33. Rxe6 {[%clk 0:01:05]}  Rxc4 {[%clk 0:00:25]} 34. Ba3 {[%clk 0:01:03]}  Nd2 {[%clk 0:00:19]} 35. Kg2 {[%clk 0:01:01]}  Nb1 {[%clk 0:00:18]} 36. Bb2 {[%clk 0:00:54]}  a3 {[%clk 0:00:17]} 37. Ba1 {[%clk 0:00:54]}  Kf7 {[%clk 0:00:16]} 38. Re2 {[%clk 0:00:50]}  Rb4 {[%clk 0:00:12]} 39. Rc2 {[%clk 0:00:47]}  Rxb5 {[%clk 0:00:12]} 40. Rxc7+ {[%clk 0:00:46]}  Ke6 {[%clk 0:00:13]} 41. Rxg7 {[%clk 0:00:46]}  h5 {[%clk 0:00:12]} 42. Ra7 {[%clk 0:00:44]}  Rb3 {[%clk 0:00:11]} 43. g4 {[%clk 0:00:43]}  hxg4 {[%clk 0:00:10]} 44. fxg4 {[%clk 0:00:43]}  b5 {[%clk 0:00:10]} 45. g5 {[%clk 0:00:44]}  Kf5 {[%clk 0:00:11]} 46. Rg7 {[%clk 0:00:32]}  a2 {[%clk 0:00:09]} 47. g6 {[%clk 0:00:32]}  Na3 {[%clk 0:00:07]} 48. Rg8 {[%clk 0:00:31]}  Rb4 {[%clk 0:00:06]} 49. g7 {[%clk 0:00:29]}  Nc2 {[%clk 0:00:06]} 50. Rf8+ {[%clk 0:00:28]}  Ke6 {[%clk 0:00:02]} 51. g8=Q+ {[%clk 0:00:28]}  Kd7 {[%clk 0:00:01]} 52. Rf7+ {[%clk 0:00:27]} 1-0


[Site "https://www.chess.com"]

[Event "Titled Tuesday Blitz October 11 Early 2022"]
[White "Migot, Tangi"]
[Black "Pappelis, Dimitrios"]
[WhiteFideId "662445"]
[BlackFideId "4215281"]
[WhiteElo "2465"]
[BlackElo "2104"]
[Result "1-0"]
[Round "03"]
[TimeControl "180+1"]
[Date "2022.10.12"]
[WhiteClock "0:00:17"]
[BlackClock "0:00:28"]

1. e4 {[%clk 0:03:00]}  c5 {[%clk 0:02:59]} 2. Nf3 {[%clk 0:03:00]}  Nc6 {[%clk 0:03:00]} 3. Bb5 {[%clk 0:03:00]}  Nf6 {[%clk 0:02:59]} 4. Bxc6 {[%clk 0:02:55]}  dxc6 {[%clk 0:03:00]} 5. d3 {[%clk 0:02:56]}  Qc7 {[%clk 0:02:58]} 6. h3 {[%clk 0:02:56]}  e5 {[%clk 0:02:58]} 7. Be3 {[%clk 0:02:56]}  h6 {[%clk 0:02:55]} 8. Nc3 {[%clk 0:02:56]}  Be6 {[%clk 0:02:54]} 9. a3 {[%clk 0:02:47]}  Be7 {[%clk 0:02:52]} 10. O-O {[%clk 0:02:46]}  O-O-O {[%clk 0:02:49]} 11. Nd2 {[%clk 0:02:44]}  g5 {[%clk 0:02:44]} 12. Na4 {[%clk 0:02:42]}  Nd7 {[%clk 0:02:41]} 13. b4 {[%clk 0:02:41]}  Rdg8 {[%clk 0:02:20]} 14. Nxc5 {[%clk 0:02:16]}  Nxc5 {[%clk 0:02:18]} 15. Bxc5 {[%clk 0:02:16]}  g4 {[%clk 0:02:15]} 16. Bxe7 {[%clk 0:02:04]}  Qxe7 {[%clk 0:02:14]} 17. g3 {[%clk 0:01:54]}  gxh3 {[%clk 0:02:10]} 18. Kh2 {[%clk 0:01:54]}  h5 {[%clk 0:02:09]} 19. Rg1 {[%clk 0:01:45]}  h4 {[%clk 0:02:08]} 20. Qe2 {[%clk 0:01:37]}  hxg3+ {[%clk 0:02:04]} 21. Rxg3 {[%clk 0:01:37]}  Rxg3 {[%clk 0:01:53]} 22. fxg3 {[%clk 0:01:38]}  Qg5 {[%clk 0:01:50]} 23. Qf2 {[%clk 0:01:29]}  Kb8 {[%clk 0:01:45]} 24. Nf3 {[%clk 0:01:25]}  Qh5 {[%clk 0:01:41]} 25. Nh4 {[%clk 0:01:16]}  Rg8 {[%clk 0:01:35]} 26. Rf1 {[%clk 0:01:12]}  Qg5 {[%clk 0:01:18]} 27. a4 {[%clk 0:00:58]}  Rh8 {[%clk 0:01:03]} 28. Qf6 {[%clk 0:00:50]}  Qxf6 {[%clk 0:01:02]} 29. Rxf6 {[%clk 0:00:50]}  Rd8 {[%clk 0:01:03]} 30. Nf3 {[%clk 0:00:39]}  a5 {[%clk 0:00:46]} 31. bxa5 {[%clk 0:00:35]}  Ka7 {[%clk 0:00:45]} 32. Nxe5 {[%clk 0:00:35]}  Ka6 {[%clk 0:00:44]} 33. Nxf7 {[%clk 0:00:34]}  Rf8 {[%clk 0:00:37]} 34. Rxe6 {[%clk 0:00:34]}  Rxf7 {[%clk 0:00:37]} 35. Kxh3 {[%clk 0:00:30]}  Kxa5 {[%clk 0:00:36]} 36. g4 {[%clk 0:00:26]}  Kxa4 {[%clk 0:00:34]} 37. g5 {[%clk 0:00:26]}  c5 {[%clk 0:00:32]} 38. g6 {[%clk 0:00:24]}  Rg7 {[%clk 0:00:31]} 39. Kg4 {[%clk 0:00:24]}  b5 {[%clk 0:00:31]} 40. Kg5 {[%clk 0:00:25]}  Kb4 {[%clk 0:00:31]} 41. Kh6 {[%clk 0:00:21]}  Ra7 {[%clk 0:00:29]} 42. g7 {[%clk 0:00:21]}  Ra8 {[%clk 0:00:29]} 43. Kh7 {[%clk 0:00:20]}  Kc3 {[%clk 0:00:30]} 44. Rc6 {[%clk 0:00:18]}  c4 {[%clk 0:00:28]} 45. dxc4 {[%clk 0:00:17]}  bxc4 {[%clk 0:00:28]} 46. g8=Q {[%clk 0:00:17]} 1-0


[Site "https://www.chess.com"]

[Event "Titled Tuesday Blitz October 11 Early 2022"]
[White "Mills, Morgen"]
[Black "Wirig, Anthony"]
[WhiteFideId "2013304"]
[BlackFideId "615013"]
[WhiteElo "2190"]
[BlackElo "2474"]
[Result "0-1"]
[Round "03"]
[TimeControl "180+1"]
[Date "2022.10.12"]
[WhiteClock "0:00:06"]
[BlackClock "0:00:43"]

1. e4 {[%clk 0:03:00]}  c5 {[%clk 0:02:59]} 2. Nf3 {[%clk 0:03:00]}  e6 {[%clk 0:02:59]} 3. c4 {[%clk 0:02:55]}  Nc6 {[%clk 0:02:59]} 4. Nc3 {[%clk 0:02:56]}  e5 {[%clk 0:02:58]} 5. d3 {[%clk 0:02:56]}  d6 {[%clk 0:02:59]} 6. g3 {[%clk 0:02:50]}  Be7 {[%clk 0:02:58]} 7. Bg2 {[%clk 0:02:51]}  f5 {[%clk 0:02:53]} 8. Nd5 {[%clk 0:02:48]}  Nf6 {[%clk 0:02:53]} 9. Qe2 {[%clk 0:02:33]}  O-O {[%clk 0:02:50]} 10. O-O {[%clk 0:02:32]}  fxe4 {[%clk 0:02:47]} 11. dxe4 {[%clk 0:02:27]}  Bg4 {[%clk 0:02:46]} 12. Qe3 {[%clk 0:02:13]}  Nxd5 {[%clk 0:02:39]} 13. cxd5 {[%clk 0:02:01]}  Nd4 {[%clk 0:02:37]} 14. Nxd4 {[%clk 0:01:58]}  cxd4 {[%clk 0:02:36]} 15. Qd3 {[%clk 0:01:55]}  Qb6 {[%clk 0:02:26]} 16. f3 {[%clk 0:01:52]}  Bd7 {[%clk 0:02:26]} 17. a4 {[%clk 0:01:51]}  Rac8 {[%clk 0:02:13]} 18. f4 {[%clk 0:01:39]}  Qc5 {[%clk 0:01:59]} 19. Rf2 {[%clk 0:01:13]}  b5 {[%clk 0:01:39]} 20. axb5 {[%clk 0:00:43]}  Bxb5 {[%clk 0:01:40]} 21. Qd2 {[%clk 0:00:37]}  a6 {[%clk 0:01:26]} 22. Bh3 {[%clk 0:00:37]}  Rb8 {[%clk 0:01:16]} 23. Be6+ {[%clk 0:00:36]}  Kh8 {[%clk 0:01:16]} 24. fxe5 {[%clk 0:00:37]}  Rxf2 {[%clk 0:01:07]} 25. Qxf2 {[%clk 0:00:29]}  Rf8 {[%clk 0:01:06]} 26. Bf7 {[%clk 0:00:12]}  dxe5 {[%clk 0:00:59]} 27. Bd2 {[%clk 0:00:10]}  Be8 {[%clk 0:00:53]} 28. Rf1 {[%clk 0:00:08]}  Rxf7 {[%clk 0:00:51]} 29. Qxf7 {[%clk 0:00:09]}  Bxf7 {[%clk 0:00:50]} 30. Rxf7 {[%clk 0:00:09]}  Kg8 {[%clk 0:00:49]} 31. Rf5 {[%clk 0:00:09]}  Bd6 {[%clk 0:00:45]} 32. Kg2 {[%clk 0:00:08]}  Qc2 {[%clk 0:00:43]} 33. Rf2 {[%clk 0:00:06]}  Qxe4+ {[%clk 0:00:43]} 0-1


[Site "https://www.chess.com"]

[Event "Titled Tuesday Blitz October 11 Early 2022"]
[White "Mindlin, Alon"]
[Black "Fernandez Siles, Luis"]
[WhiteFideId "2800071"]
[BlackFideId "2209420"]
[WhiteElo "2417"]
[BlackElo "2186"]
[Result "1-0"]
[Round "03"]
[TimeControl "180+1"]
[Date "2022.10.12"]
[WhiteClock "0:01:45"]
[BlackClock "0:00:07"]

1. d4 {[%clk 0:03:00]}  Nf6 {[%clk 0:02:59]} 2. c4 {[%clk 0:03:01]}  g6 {[%clk 0:02:59]} 3. Nc3 {[%clk 0:03:01]}  Bg7 {[%clk 0:02:59]} 4. e4 {[%clk 0:03:01]}  d6 {[%clk 0:03:00]} 5. f3 {[%clk 0:03:02]}  O-O {[%clk 0:03:00]} 6. Be3 {[%clk 0:03:03]}  e5 {[%clk 0:03:00]} 7. Nge2 {[%clk 0:03:02]}  c6 {[%clk 0:02:59]} 8. d5 {[%clk 0:03:02]}  cxd5 {[%clk 0:02:58]} 9. cxd5 {[%clk 0:03:03]}  a6 {[%clk 0:02:56]} 10. Qd2 {[%clk 0:03:00]}  Nbd7 {[%clk 0:02:56]} 11. g4 {[%clk 0:03:01]}  h5 {[%clk 0:02:56]} 12. h3 {[%clk 0:03:01]}  b5 {[%clk 0:02:55]} 13. Ng3 {[%clk 0:03:01]}  h4 {[%clk 0:02:35]} 14. Nge2 {[%clk 0:03:00]}  Nh7 {[%clk 0:02:35]} 15. Nc1 {[%clk 0:02:53]}  Bb7 {[%clk 0:02:32]} 16. Nb3 {[%clk 0:02:49]}  Rc8 {[%clk 0:02:29]} 17. Bd3 {[%clk 0:02:45]}  Nb6 {[%clk 0:02:12]} 18. Rc1 {[%clk 0:02:37]}  b4 {[%clk 0:01:42]} 19. Ne2 {[%clk 0:02:36]}  a5 {[%clk 0:01:28]} 20. Nxa5 {[%clk 0:02:35]}  Rxc1+ {[%clk 0:01:18]} 21. Nxc1 {[%clk 0:02:34]}  Bxd5 {[%clk 0:01:07]} 22. exd5 {[%clk 0:02:32]}  Nxd5 {[%clk 0:01:06]} 23. Nc6 {[%clk 0:02:27]}  Qe8 {[%clk 0:00:51]} 24. Nxb4 {[%clk 0:02:23]}  Nf4 {[%clk 0:00:51]} 25. Bxf4 {[%clk 0:02:21]}  exf4+ {[%clk 0:00:50]} 26. Ne2 {[%clk 0:02:21]}  Bd4 {[%clk 0:00:43]} 27. Nd5 {[%clk 0:02:12]}  Be3 {[%clk 0:00:38]} 28. Qc3 {[%clk 0:02:06]}  f5 {[%clk 0:00:32]} 29. gxf5 {[%clk 0:02:05]}  gxf5 {[%clk 0:00:31]} 30. Rh2 {[%clk 0:02:04]}  Kf7 {[%clk 0:00:17]} 31. Qc7+ {[%clk 0:01:58]}  Ke6 {[%clk 0:00:15]} 32. Bc4 {[%clk 0:01:53]}  Ke5 {[%clk 0:00:11]} 33. Qxh7 {[%clk 0:01:49]}  Rg8 {[%clk 0:00:09]} 34. Qe7+ {[%clk 0:01:44]}  Qxe7 {[%clk 0:00:07]} 35. Nxe7 {[%clk 0:01:45]} 1-0


[Site "https://www.chess.com"]

[Event "Titled Tuesday Blitz October 11 Early 2022"]
[White "Molina, Roberto Junio Brito"]
[Black "Ziatdinov, Raset"]
[WhiteFideId "2109450"]
[BlackFideId "2015323"]
[WhiteElo "2388"]
[BlackElo "2220"]
[Result "1-0"]
[Round "03"]
[TimeControl "180+1"]
[Date "2022.10.11"]
[WhiteClock "0:00:57"]
[BlackClock "0:00:13"]

1. d4 {[%clk 0:03:00]}  Nf6 {[%clk 0:03:00]} 2. Nf3 {[%clk 0:03:00]}  g6 {[%clk 0:02:56]} 3. e3 {[%clk 0:03:00]}  Bg7 {[%clk 0:02:55]} 4. Be2 {[%clk 0:03:00]}  O-O {[%clk 0:02:56]} 5. O-O {[%clk 0:03:00]}  d6 {[%clk 0:02:54]} 6. c4 {[%clk 0:02:59]}  Nc6 {[%clk 0:02:53]} 7. b3 {[%clk 0:03:00]}  e5 {[%clk 0:02:52]} 8. Bb2 {[%clk 0:03:00]}  exd4 {[%clk 0:02:52]} 9. Nxd4 {[%clk 0:03:00]}  Nxd4 {[%clk 0:02:52]} 10. Bxd4 {[%clk 0:03:00]}  Re8 {[%clk 0:02:53]} 11. Nd2 {[%clk 0:02:54]}  Bd7 {[%clk 0:02:49]} 12. Rc1 {[%clk 0:02:53]}  Bc6 {[%clk 0:02:39]} 13. Bf3 {[%clk 0:02:52]}  Qd7 {[%clk 0:02:38]} 14. Bxc6 {[%clk 0:02:48]}  Qxc6 {[%clk 0:02:38]} 15. Qf3 {[%clk 0:02:48]}  Ne4 {[%clk 0:02:34]} 16. Nxe4 {[%clk 0:02:47]}  Qxe4 {[%clk 0:02:32]} 17. Qxe4 {[%clk 0:02:46]}  Rxe4 {[%clk 0:02:33]} 18. Bxg7 {[%clk 0:02:46]}  Kxg7 {[%clk 0:02:34]} 19. Rfd1 {[%clk 0:02:46]}  Re5 {[%clk 0:02:31]} 20. g3 {[%clk 0:02:45]}  a5 {[%clk 0:02:30]} 21. Kf1 {[%clk 0:02:42]}  a4 {[%clk 0:02:29]} 22. b4 {[%clk 0:02:42]}  Ra6 {[%clk 0:02:25]} 23. a3 {[%clk 0:02:41]}  f5 {[%clk 0:02:20]} 24. Ke2 {[%clk 0:02:37]}  Kf6 {[%clk 0:02:20]} 25. h4 {[%clk 0:02:36]}  Rb6 {[%clk 0:02:14]} 26. Rc3 {[%clk 0:02:35]}  Ke7 {[%clk 0:02:11]} 27. f4 {[%clk 0:02:30]}  Re4 {[%clk 0:02:10]} 28. Rd4 {[%clk 0:02:30]}  Rxd4 {[%clk 0:01:55]} 29. exd4 {[%clk 0:02:30]}  Ra6 {[%clk 0:01:56]} 30. Re3+ {[%clk 0:02:29]}  Kd7 {[%clk 0:01:55]} 31. Kd3 {[%clk 0:02:28]}  Ra8 {[%clk 0:01:55]} 32. d5 {[%clk 0:02:24]}  h6 {[%clk 0:01:49]} 33. b5 {[%clk 0:02:06]}  c6 {[%clk 0:01:38]} 34. dxc6+ {[%clk 0:02:04]}  bxc6 {[%clk 0:01:39]} 35. bxc6+ {[%clk 0:02:04]}  Kxc6 {[%clk 0:01:39]} 36. Kd4 {[%clk 0:02:02]}  Rb8 {[%clk 0:01:38]} 37. Re6 {[%clk 0:02:00]}  Rb3 {[%clk 0:01:31]} 38. Rxg6 {[%clk 0:01:52]}  Rxa3 {[%clk 0:01:23]} 39. c5 {[%clk 0:01:52]}  h5 {[%clk 0:01:20]} 40. Rxd6+ {[%clk 0:01:50]}  Kc7 {[%clk 0:01:20]} 41. Ra6 {[%clk 0:01:48]}  Rxg3 {[%clk 0:01:15]} 42. Rxa4 {[%clk 0:01:47]}  Rg4 {[%clk 0:01:16]} 43. Ke5 {[%clk 0:01:47]}  Rxh4 {[%clk 0:01:16]} 44. Ra6 {[%clk 0:01:43]}  Rh1 {[%clk 0:01:14]} 45. Kxf5 {[%clk 0:01:41]}  h4 {[%clk 0:01:13]} 46. Rh6 {[%clk 0:01:38]}  h3 {[%clk 0:01:12]} 47. Kg4 {[%clk 0:01:35]}  h2 {[%clk 0:01:12]} 48. Kg3 {[%clk 0:01:34]}  Rc1 {[%clk 0:01:12]} 49. Rxh2 {[%clk 0:01:33]}  Rxc5 {[%clk 0:01:12]} 50. Rd2 {[%clk 0:01:32]}  Rc6 {[%clk 0:00:26]} 51. Kg4 {[%clk 0:01:27]}  Rg6+ {[%clk 0:00:23]} 52. Kh5 {[%clk 0:01:22]}  Rg8 {[%clk 0:00:24]} 53. f5 {[%clk 0:01:23]}  Rg1 {[%clk 0:00:23]} 54. f6 {[%clk 0:01:21]}  Rh1+ {[%clk 0:00:23]} 55. Kg6 {[%clk 0:01:21]}  Rg1+ {[%clk 0:00:24]} 56. Kh7 {[%clk 0:01:21]}  Rh1+ {[%clk 0:00:24]} 57. Kg7 {[%clk 0:01:21]}  Rg1+ {[%clk 0:00:25]} 58. Kf8 {[%clk 0:01:20]}  Rg4 {[%clk 0:00:22]} 59. f7 {[%clk 0:01:19]}  Rg1 {[%clk 0:00:22]} 60. Rd4 {[%clk 0:01:17]}  Kc6 {[%clk 0:00:20]} 61. Ke7 {[%clk 0:01:15]}  Re1+ {[%clk 0:00:20]} 62. Kd8 {[%clk 0:01:07]}  Rf1 {[%clk 0:00:19]} 63. Rd7 {[%clk 0:01:05]}  Ra1 {[%clk 0:00:17]} 64. Ke8 {[%clk 0:00:57]}  Re1+ {[%clk 0:00:12]} 65. Re7 {[%clk 0:00:57]}  Ra1 {[%clk 0:00:11]} 66. f8=Q {[%clk 0:00:56]}  Ra8+ {[%clk 0:00:11]} 67. Kf7 {[%clk 0:00:56]}  Rxf8+ {[%clk 0:00:12]} 68. Kxf8 {[%clk 0:00:57]}  Kd6 {[%clk 0:00:13]} 1-0


[Site "https://www.chess.com"]

[Event "Titled Tuesday Blitz October 11 Early 2022"]
[White "Moroni, Luca Jr"]
[Black "Kosteniuk, Alexandra"]
[WhiteFideId "865834"]
[BlackFideId "4128125"]
[WhiteElo "2573"]
[BlackElo "2469"]
[Result "1-0"]
[Round "03"]
[TimeControl "180+1"]
[Date "2022.10.11"]
[WhiteClock "0:00:31"]
[BlackClock "0:00:10"]

1. d4 {[%clk 0:03:00]}  f5 {[%clk 0:02:58]} 2. c4 {[%clk 0:03:00]}  Nf6 {[%clk 0:02:58]} 3. g3 {[%clk 0:03:01]}  g6 {[%clk 0:02:59]} 4. Bg2 {[%clk 0:03:01]}  Bg7 {[%clk 0:02:59]} 5. Nf3 {[%clk 0:03:02]}  O-O {[%clk 0:03:00]} 6. b3 {[%clk 0:03:02]}  d6 {[%clk 0:02:59]} 7. Bb2 {[%clk 0:03:03]}  a5 {[%clk 0:02:59]} 8. Nc3 {[%clk 0:03:02]}  Nc6 {[%clk 0:02:53]} 9. O-O {[%clk 0:02:55]}  e5 {[%clk 0:02:49]} 10. dxe5 {[%clk 0:02:53]}  dxe5 {[%clk 0:02:44]} 11. e4 {[%clk 0:02:53]}  f4 {[%clk 0:02:40]} 12. Qxd8 {[%clk 0:02:28]}  Rxd8 {[%clk 0:02:39]} 13. Nd5 {[%clk 0:02:29]}  Nxe4 {[%clk 0:02:22]} 14. Rfe1 {[%clk 0:02:29]}  Nc5 {[%clk 0:02:11]} 15. Nxc7 {[%clk 0:02:23]}  Rb8 {[%clk 0:02:06]} 16. Nxe5 {[%clk 0:01:53]}  Nxe5 {[%clk 0:01:38]} 17. Bxe5 {[%clk 0:01:48]}  Nd3 {[%clk 0:01:34]} 18. Bxg7 {[%clk 0:01:36]}  Nxe1 {[%clk 0:01:33]} 19. Bf6 {[%clk 0:01:36]}  Nxg2 {[%clk 0:01:26]} 20. Bxd8 {[%clk 0:01:35]}  Bh3 {[%clk 0:01:20]} 21. Bf6 {[%clk 0:01:31]}  Rf8 {[%clk 0:01:05]} 22. Bc3 {[%clk 0:01:25]}  a4 {[%clk 0:00:49]} 23. Nd5 {[%clk 0:01:20]}  f3 {[%clk 0:00:45]} 24. bxa4 {[%clk 0:00:55]}  Ra8 {[%clk 0:00:30]} 25. a5 {[%clk 0:00:54]}  Bf5 {[%clk 0:00:20]} 26. Rd1 {[%clk 0:00:47]}  Kf7 {[%clk 0:00:18]} 27. h3 {[%clk 0:00:41]}  h5 {[%clk 0:00:18]} 28. g4 {[%clk 0:00:34]}  hxg4 {[%clk 0:00:17]} 29. hxg4 {[%clk 0:00:35]}  Bxg4 {[%clk 0:00:17]} 30. Rb1 {[%clk 0:00:35]}  Rc8 {[%clk 0:00:09]} 31. Rxb7+ {[%clk 0:00:33]}  Ke6 {[%clk 0:00:10]} 32. Rb6+ {[%clk 0:00:30]}  Kf5 {[%clk 0:00:10]} 33. Ne7+ {[%clk 0:00:30]}  Kf4 {[%clk 0:00:10]} 34. Nxc8 {[%clk 0:00:31]} 1-0


[Site "https://www.chess.com"]

[Event "Titled Tuesday Blitz October 11 Early 2022"]
[White "Navalgund, Niranjan"]
[Black "Costachi, Mihnea"]
[WhiteFideId "5030854"]
[BlackFideId "1217518"]
[WhiteElo "2294"]
[BlackElo "2437"]
[Result "0-1"]
[Round "03"]
[TimeControl "180+1"]
[Date "2022.10.12"]
[WhiteClock "0:01:46"]
[BlackClock "0:00:22"]

1. e4 {[%clk 0:03:00]}  c6 {[%clk 0:02:59]} 2. Nc3 {[%clk 0:03:00]}  g6 {[%clk 0:02:55]} 3. Nf3 {[%clk 0:03:01]}  d5 {[%clk 0:02:55]} 4. h4 {[%clk 0:03:02]}  d4 {[%clk 0:02:53]} 5. Ne2 {[%clk 0:03:01]}  c5 {[%clk 0:02:49]} 6. h5 {[%clk 0:03:01]}  Bg7 {[%clk 0:02:48]} 7. hxg6 {[%clk 0:03:01]}  hxg6 {[%clk 0:02:48]} 8. Rxh8 {[%clk 0:03:01]}  Bxh8 {[%clk 0:02:49]} 9. Ng3 {[%clk 0:03:01]}  Bg4 {[%clk 0:02:48]} 10. Bc4 {[%clk 0:03:01]}  e6 {[%clk 0:02:46]} 11. d3 {[%clk 0:02:58]}  Nc6 {[%clk 0:02:45]} 12. Ke2 {[%clk 0:02:56]}  Qf6 {[%clk 0:02:38]} 13. Qh1 {[%clk 0:02:55]}  Ne5 {[%clk 0:02:30]} 14. Bb5+ {[%clk 0:02:56]}  Ke7 {[%clk 0:01:48]} 15. Bg5 {[%clk 0:02:39]}  Qxg5 {[%clk 0:01:42]} 16. Qxh8 {[%clk 0:02:39]}  Qf4 {[%clk 0:01:33]} 17. Qh4+ {[%clk 0:02:32]}  g5 {[%clk 0:01:31]} 18. Qh1 {[%clk 0:02:30]}  a6 {[%clk 0:01:25]} 19. Bc4 {[%clk 0:02:24]}  b5 {[%clk 0:01:22]} 20. Bb3 {[%clk 0:02:24]}  c4 {[%clk 0:01:22]} 21. Nh5 {[%clk 0:02:23]}  Bxh5 {[%clk 0:01:16]} 22. Qxh5 {[%clk 0:02:23]}  Nxf3 {[%clk 0:01:05]} 23. gxf3 {[%clk 0:02:22]}  Nf6 {[%clk 0:01:03]} 24. Qh6 {[%clk 0:02:19]}  cxb3 {[%clk 0:01:01]} 25. axb3 {[%clk 0:02:19]}  Rc8 {[%clk 0:01:01]} 26. Kd1 {[%clk 0:02:18]}  Qxf3+ {[%clk 0:01:01]} 27. Kc1 {[%clk 0:02:18]}  Qxf2 {[%clk 0:00:54]} 28. Kb1 {[%clk 0:02:19]}  Rxc2 {[%clk 0:00:51]} 29. Rxa6 {[%clk 0:02:16]}  Rxb2+ {[%clk 0:00:35]} 30. Ka1 {[%clk 0:02:14]}  Re2 {[%clk 0:00:33]} 31. Ra7+ {[%clk 0:02:12]}  Nd7 {[%clk 0:00:28]} 32. Qxg5+ {[%clk 0:02:11]}  Kd6 {[%clk 0:00:24]} 33. Rxd7+ {[%clk 0:02:01]}  Kxd7 {[%clk 0:00:25]} 34. Qxb5+ {[%clk 0:02:01]}  Ke7 {[%clk 0:00:26]} 35. Qc5+ {[%clk 0:01:59]}  Kf6 {[%clk 0:00:24]} 36. e5+ {[%clk 0:01:48]}  Kf5 {[%clk 0:00:23]} 37. Qc1 {[%clk 0:01:46]}  Re1 {[%clk 0:00:22]} 0-1


[Site "https://www.chess.com"]